bitfinex/quotes_ETHUSD_20241023
["timestamp","ask_amount","ask_price","bid_price","bid_amount"]
[1729724759380,3.97941,2513.0,2512.7,2.96882885]
[1729724759584,3.97941,2513.0,2512.9,0.01342897]
[1729724759879,3.97941,2513.0,2512.7,2.96882885]
[1729724760100,3.97941,2513.0,2512.9,0.01342897]
[1729724760403,3.97941,2513.0,2512.8,0.01346065]
[1729724760709,3.97941,2513.0,2512.9,0.01342897]
[1729724761414,3.97899,2513.2,2512.8,1.8275366]
[1729724761415,3.97917,2513.1,2512.8,1.8275366]
[1729724761574,3.97845,2513.6,2512.8,1.8275366]
[1729724761575,3.97846,2513.6,2513.0,1.8275366]
[1729724761906,3.97858,2513.5,2513.2,1.8275366]
[1729724762075,3.97858,2513.5,2513.2,2.6543366]
[1729724762278,3.97871,2513.4,2513.3,0.02556205]
[1729724762608,3.97871,2513.4,2513.2,0.8268]
[1729724762779,3.97871,2513.4,2513.3,0.03886435]
[1729724763606,3.97852,2513.5,2513.3,0.03886435]
[1729724764117,4.77723,2513.7,2513.3,1.86640095]
[1729724764270,3.97804,2513.8,2513.6,1.8275366]
[1729724764623,3.97783,2514.0,2513.6,1.8275366]
[1729724764624,3.97782,2514.0,2513.7,1.8275366]
[1729724764908,3.97788,2513.9,2513.6,2.6543366]
[1729724765075,3.97773,2514.0,2513.6,2.6543366]
[1729724765592,7.95554,2514.0,2513.7,1.8275366]
[1729724766201,7.95554,2514.0,2513.6,2.6543366]
[1729724766401,7.95554,2514.0,2513.8,0.01314402]
[1729724766604,3.97773,2514.0,2513.8,0.01314402]
[1729724766773,7.95558,2514.0,2513.8,0.01314402]
[1729724766975,7.95558,2514.0,2513.9,0.03806582]
[1729724767322,3.97773,2514.0,2513.9,0.03806582]
[1729724768221,3.97753,2514.2,2513.9,0.03806582]
[1729724768513,0.8287,2514.3,2513.9,0.03806582]
[1729724768714,3.0,2514.6,2514.0,0.755]
[1729724768715,3.9769,2514.6,2514.0,0.755]
[1729724768872,3.97693,2514.5,2514.1,0.07953949]
[1729724769073,3.97694,2514.5,2514.1,0.02498603]
[1729724769298,3.9769,2514.6,2514.1,0.50207687]
[1729724769510,3.97702,2514.5,2514.1,0.02498603]
[1729724769712,3.97716,2514.4,2514.1,0.02498603]
[1729724769923,3.97716,2514.4,2514.2,0.01301744]
[1729724770711,3.97725,2514.3,2514.2,0.01301744]
[1729724771485,7.9541,2514.5,2514.2,0.01301744]
[1729724771681,7.9543,2514.4,2514.2,0.01301744]
[1729724772112,4.0108006,2514.4,2514.2,0.01301744]
[1729724773328,0.0336906,2514.4,2514.2,0.01301744]
[1729724774014,0.0336906,2514.4,2514.3,0.755]
[1729724774219,0.0336906,2514.4,2514.3,0.76798581]
[1729724774424,4.0107806,2514.4,2514.3,0.76798581]
[1729724775895,0.0336906,2514.4,2514.3,0.76798581]
[1729724777729,4.0107806,2514.4,2514.3,0.76798581]
[1729724780246,0.0336906,2514.4,2514.3,0.76798581]
[1729724780409,0.0336906,2514.4,2514.3,4.74523581]
[1729724780730,0.0336906,2514.4,2514.3,5.22325799]
[1729724781132,0.0336906,2514.4,2514.3,1.24600799]
[1729724782836,0.0336906,2514.4,2514.3,0.76798581]
[1729724783240,0.0336906,2514.4,2514.3,0.79121337]
[1729724784026,0.0336906,2514.4,2514.3,0.03621337]
[1729724784324,4.0107806,2514.4,2514.3,0.03621337]
[1729724785305,4.0107806,2514.4,2514.3,0.28497806]
[1729724788241,4.0107806,2514.4,2514.3,0.34864657]
[1729724789175,4.0107806,2514.4,2514.3,0.28498321]
[1729724789382,0.0336906,2514.4,2514.3,0.28498321]
[1729724790078,4.0107806,2514.4,2514.3,0.28498321]
[1729724791545,0.0336906,2514.4,2514.3,0.28498321]
[1729724791745,0.0336906,2514.4,2514.3,0.28498042]
[1729724792147,0.0336906,2514.4,2514.3,0.2849804]
[1729724792567,4.0107806,2514.4,2514.3,0.2849804]
[1729724793241,0.0336906,2514.4,2514.3,0.2849804]
[1729724794090,4.0107806,2514.4,2514.3,0.2849804]
[1729724794669,0.0336906,2514.4,2514.3,0.2849804]
[1729724794905,4.0107806,2514.4,2514.3,0.2849804]
[1729724795112,0.0336906,2514.4,2514.3,0.2849804]
[1729724796421,0.0336906,2514.4,2514.3,0.49584468]
[1729724797318,0.0336906,2514.4,2514.3,2.28329373]
[1729724799010,0.0336906,2514.4,2514.3,2.0345267]
[1729724799300,0.0336906,2514.4,2514.3,2.28329067]
[1729724799501,0.0336906,2514.4,2514.3,0.24876397]
[1729724800467,4.0107806,2514.4,2514.3,0.24876397]
[1729724800699,4.8192806,2514.4,2514.3,0.24876397]
[1729724802425,0.8421906,2514.4,2514.3,0.24876397]
[1729724802629,4.8192806,2514.4,2514.3,0.24876397]
[1729724803146,4.8192806,2514.4,2514.3,0.24877261]
[1729724803428,4.8192806,2514.4,2514.3,0.31263025]
[1729724803625,0.8421906,2514.4,2514.3,0.24877261]
[1729724804207,0.8421906,2514.4,2514.3,0.24877253]
[1729724805994,5.30119566,2514.4,2514.3,0.24877253]
[1729724806435,5.30119566,2514.4,2514.0,0.06383721]
[1729724806436,3.97797,2513.9,2513.5,2.60436242]
[1729724806739,4.78622,2514.0,2513.5,2.60436242]
[1729724806740,4.78622,2514.0,2513.8,0.06386196]
[1729724806900,4.78622,2514.0,2513.9,0.31267449]
[1729724807310,0.8085,2514.0,2513.9,0.24881556]
[1729724807513,0.8421906,2514.0,2513.9,0.24881556]
[1729724807717,4.8199106,2514.0,2513.9,0.24881556]
[1729724808099,0.8421906,2514.0,2513.9,0.24881556]
[1729724808924,4.8199106,2514.0,2513.9,0.24881556]
[1729724812239,4.8199106,2514.0,2513.8,0.24881556]
[1729724812421,0.8421906,2514.0,2513.9,0.24881556]
[1729724812818,4.8199106,2514.0,2513.9,0.24881556]
[1729724813125,0.0336906,2514.0,2513.9,0.24881556]
[1729724813320,0.0336906,2514.0,2513.8,0.21363369]
[1729724813521,4.0114306,2514.0,2513.9,0.24881259]
[1729724813824,4.0114306,2514.0,2513.9,0.24881254]
[1729724815540,4.0114306,2514.0,2513.7,0.24881254]
[1729724815742,4.0114306,2514.0,2513.8,0.24881254]
[1729724815941,4.0114306,2514.0,2513.9,0.2488126]
[1729724816143,4.0114306,2514.0,2513.8,0.2488126]
[1729724816345,4.0114306,2514.0,2513.9,0.2488126]
[1729724816564,4.0114306,2514.0,2513.8,0.2488126]
[1729724816895,4.0114306,2514.0,2513.9,0.2488126]
[1729724817197,4.0114306,2514.0,2513.8,0.24881266]
[1729724817424,4.0114306,2514.0,2513.9,0.24881266]
[1729724817719,0.0336906,2514.0,2513.9,0.24881266]
[1729724817993,4.0114106,2514.0,2513.9,0.24881266]
[1729724819296,0.0336906,2514.0,2513.8,0.24279303]
[1729724820371,4.0114406,2514.0,2513.8,0.24279303]
[1729724821293,3.97795,2513.9,2513.6,0.06374882]
[1729724821498,3.97795,2513.9,2513.3,3.97881]
[1729724821499,3.97804,2513.8,2513.7,0.2488218]
[1729724821693,3.97804,2513.8,2513.3,0.8317]
[1729724821694,3.97827,2513.7,2513.5,0.24883887]
[1729724821855,3.97804,2513.8,2513.6,0.24883887]
[1729724822054,7.95617,2513.8,2513.4,2.07250129]
[1729724822254,3.97804,2513.8,2513.5,0.24883887]
[1729724822480,3.97804,2513.8,2513.4,2.51835543]
[1729724822673,4.0117306,2513.8,2513.5,0.24884198]
[1729724822871,4.0117306,2513.8,2513.6,0.24884198]
[1729724823096,4.0117306,2513.8,2513.4,2.51835543]
[1729724823313,4.0117306,2513.8,2513.5,0.5917984]
[1729724823592,4.0117306,2513.8,2513.5,0.59179855]
[1729724823796,0.0336906,2513.8,2513.6,2.07249879]
[1729724823959,0.0336906,2513.8,2513.7,2.90419879]
[1729724824178,0.0336906,2513.8,2513.7,1.1564161]
[1729724824423,0.0336906,2513.8,2513.7,1.40525247]
[1729724824591,0.0336906,2513.8,2513.7,3.22891489]
[1729724824784,0.0336906,2513.8,2513.7,7.20710489]
[1729724824978,0.0336906,2513.8,2513.7,7.28665462]
[1729724825186,0.0336906,2513.8,2513.7,7.35036856]
[1729724825691,0.0336906,2513.8,2513.7,7.27081883]
[1729724825891,0.0336906,2513.8,2513.7,7.35036851]
[1729724827094,0.0336906,2513.8,2513.7,7.28665457]
[1729724827624,0.0336906,2513.8,2513.7,7.35036826]
[1729724828186,0.0336906,2513.8,2513.7,7.28665457]
[1729724828714,0.0336906,2513.8,2513.7,9.95826852]
[1729724829702,0.0336906,2513.8,2513.7,10.20705681]
[1729724831337,0.0336906,2513.8,2513.7,10.20705656]
[1729724834323,0.0336906,2513.8,2513.7,9.37535656]
[1729724834664,0.0336906,2513.8,2513.7,9.91146852]
[1729724835118,0.0336906,2513.8,2513.7,10.16024249]
[1729724838144,0.0336906,2513.8,2513.7,6.18205249]
[1729724838474,0.0336906,2513.8,2513.7,7.23980098]
[1729724838629,0.0336906,2513.8,2513.7,7.22396271]
[1729724839528,0.0336906,2513.8,2513.7,6.91146852]
[1729724839729,0.0336906,2513.8,2513.7,7.22397931]
[1729724841629,0.0336906,2513.8,2513.7,3.24578931]
[1729724841824,0.0336906,2513.8,2513.7,2.93327852]
[1729724842060,0.0336906,2513.8,2513.7,3.32535524]
[1729724842263,0.0336906,2513.8,2513.7,3.24580192]
[1729724843265,0.0336906,2513.8,2513.7,7.30354526]
[1729724844545,0.0336906,2513.8,2513.7,7.30354488]
[1729724845574,0.0336906,2513.8,2513.7,7.30353849]
[1729724845780,0.0336906,2513.8,2513.7,7.30354552]
[1729724846703,0.0336906,2513.8,2513.7,7.22399218]
[1729724848185,0.0336906,2513.8,2513.7,7.23981656]
[1729724848549,0.0336906,2513.8,2513.7,7.16026307]
[1729724848953,0.0336906,2513.8,2513.7,7.23980909]
[1729724849691,0.0336906,2513.8,2513.7,10.23980909]
[1729724849989,0.0336906,2513.8,2513.7,10.16026307]
[1729724852456,0.0336906,2513.8,2513.7,9.91146852]
[1729724852757,0.0336906,2513.8,2513.7,10.16023831]
[1729724854926,0.0336906,2513.8,2513.7,10.16024205]
[1729724856216,0.0336906,2513.8,2513.7,10.16024324]
[1729724856634,0.0336906,2513.8,2513.7,9.91146852]
[1729724856939,0.0336906,2513.8,2513.7,10.16024252]
[1729724860108,0.0336906,2513.8,2513.7,10.16024326]
[1729724863656,0.0336906,2513.8,2513.7,9.91146852]
[1729724863809,0.0336906,2513.8,2513.7,10.16024302]
[1729724871044,0.0336906,2513.8,2513.7,9.91146852]
[1729724871244,0.0336906,2513.8,2513.7,10.16024129]
[1729724874669,0.0336906,2513.8,2513.7,9.91146852]
[1729724874870,0.0336906,2513.8,2513.7,10.16024112]
[1729724878567,0.0336906,2513.8,2513.7,9.91146852]
[1729724878748,0.0336906,2513.8,2513.7,8.33657878]
[1729724879071,0.0336906,2513.8,2513.7,7.55167878]
[1729724879569,0.0336906,2513.8,2513.7,9.3753412]
[1729724880995,0.0336906,2513.8,2513.7,9.12656852]
[1729724881141,0.0336906,2513.8,2513.7,9.37534111]
[1729724883485,0.0336906,2513.8,2513.7,9.37534112]
[1729724884417,0.0336906,2513.8,2513.7,9.37534073]
[1729724888388,0.0336906,2513.8,2513.7,9.12656852]
[1729724888694,0.0336906,2513.8,2513.7,9.3753406]
[1729724891864,0.0336906,2513.8,2513.7,9.37534138]
[1729724898874,0.0336906,2513.8,2513.7,9.12656852]
[1729724899038,0.0336906,2513.8,2513.7,9.3753395]
[1729724899238,0.0336906,2513.8,2513.7,9.12656852]
[1729724899437,0.0336906,2513.8,2513.7,9.37533946]
[1729724902171,0.0336906,2513.8,2513.7,7.55167704]
[1729724902776,0.0336906,2513.8,2513.7,7.55167707]
[1729724906149,0.0336906,2513.8,2513.7,7.3029061]
[1729724906486,0.0336906,2513.8,2513.7,7.55167672]
[1729724910597,0.0336906,2513.8,2513.7,7.63122349]
[1729724911096,0.0336906,2513.8,2513.7,8.41272337]
[1729724911269,0.0336906,2513.8,2513.7,5.33317672]
[1729724911450,0.0336906,2513.8,2513.7,5.96272202]
[1729724911659,0.0336906,2513.8,2513.7,5.88317672]
[1729724912961,0.0336906,2513.8,2513.7,7.70683914]
[1729724914509,0.0336906,2513.8,2513.7,10.78638008]
[1729724914812,0.0336906,2513.8,2513.7,10.70683914]
[1729724915605,6e-07,2513.8,2513.7,10.70683914]
[1729724916907,6e-07,2513.8,2513.7,10.70678249]
[1729724918812,6e-07,2513.8,2513.7,15.70678249]
[1729724919609,6e-07,2513.8,2513.7,15.71470899]
[1729724920530,6e-07,2513.8,2513.7,17.53837141]
[1729724920727,6e-07,2513.8,2513.7,17.28965744]
[1729724920883,6e-07,2513.8,2513.7,15.71468987]
[1729724922598,6e-07,2513.8,2513.7,17.53835229]
[1729724922793,0.8285,2515.2,2514.7,3.9765]
[1729724922980,0.8285,2515.2,2515.1,1.82366242]
[1729724923187,4.80365,2515.7,2515.1,2.62286242]
[1729724923430,3.97551,2515.4,2515.2,1.82366242]
[1729724923629,3.97543,2515.5,2515.1,2.07235727]
[1729724923782,3.97473,2515.9,2515.1,2.07235727]
[1729724923783,4.80405,2515.4,2515.1,2.07235727]
[1729724923989,4.80405,2515.4,2515.1,2.07231585]
[1729724924232,0.8285,2515.4,2515.2,1.82366242]
[1729724924523,0.8285,2515.4,2515.1,1.82366242]
[1729724924891,0.8285,2515.4,2515.1,5.79964242]
[1729724925093,0.8285,2515.4,2515.2,1.82366242]
[1729724925792,0.8285,2515.4,2515.1,11.08632966]
[1729724926025,0.8285,2515.4,2515.1,7.35900208]
[1729724926333,0.8285,2515.4,2515.1,11.08622966]
[1729724926496,0.8285,2515.4,2515.1,11.33488208]
[1729724926829,0.8285,2515.4,2515.2,1.43448821]
[1729724927630,0.8285,2515.4,2515.1,1.82366242]
[1729724928495,0.8285,2515.4,2515.0,8.79979242]
[1729724928900,0.8285,2515.4,2515.1,5.79961242]
[1729724931336,0.8285,2515.4,2515.2,1.82366242]
[1729724932327,0.8285,2515.4,2515.1,4.22459563]
[1729724932328,0.8285,2515.4,2515.1,6.04825805]
[1729724932527,0.8285,2515.4,2515.2,3.20702122]
[1729724933304,0.8285,2515.4,2515.2,1.3833588]
[1729724933504,4.78201,2515.6,2515.2,1.3833588]
[1729724933704,4.78201,2515.6,2515.2,3.20702122]
[1729724934133,4.78201,2515.6,2515.3,0.07950239]
[1729724934442,4.78201,2515.6,2515.3,0.91224434]
[1729724934940,3.97489,2515.8,2515.4,1.82366242]
[1729724935143,7.94992,2515.8,2515.5,0.07949762]
[1729724935346,3.97489,2515.8,2515.5,0.07949762]
[1729724935749,3.97489,2515.8,2515.3,2.65640437]
[1729724935750,3.97511,2515.7,2515.3,2.65640437]
[1729724935908,0.8068,2515.6,2515.3,0.83274195]
[1729724936312,0.8068,2516.0,2515.5,5.79895242]
[1729724936541,0.8068,2516.0,2515.7,1.82366242]
[1729724936751,0.8068,2516.0,2515.8,0.07948796]
[1729724937120,0.8068,2516.0,2515.6,3.97512]
[1729724937121,0.8068,2516.0,2515.6,5.79876242]
[1729724938263,4.78136,2516.0,2515.5,7.22398587]
[1729724938547,4.78168,2515.8,2515.4,3.66321544]
[1729724938752,4.78168,2515.8,2515.4,3.0]
[1729724939556,3.97535,2515.5,2515.1,8.04596]
[1729724939739,0.8068,2515.6,2515.1,9.86956242]
[1729724939914,4.782,2515.6,2515.2,3.97582]
[1729724940720,3.97563,2515.4,2515.1,0.24863274]
[1729724940915,4.78254,2515.3,2515.0,3.0]
[1729724941170,0.8068,2515.3,2515.1,0.07951113]
[1729724941319,0.8068,2515.3,2515.0,5.74430797]
[1729724941519,0.8068,2515.3,2515.0,3.92064555]
[1729724941867,0.8068,2515.3,2515.1,0.07950993]
[1729724943658,0.8068,2515.5,2515.2,5.79940242]
[1729724943960,0.8068,2515.5,2515.3,1.06497757]
[1729724944117,0.8068,2515.5,2515.3,0.98547524]
[1729724944318,0.8068,2515.5,2515.4,0.07950193]
[1729724944561,0.8068,2515.5,2515.3,4.96113524]
[1729724945823,4.78194,2515.7,2515.4,0.0795018]
[1729724946044,4.78194,2515.7,2515.3,4.96113524]
[1729724946244,4.78194,2515.7,2515.3,5.20976674]
[1729724946451,0.8068,2515.7,2515.4,5.85513738]
[1729724946758,0.8068,2516.0,2515.5,6.04761392]
[1729724946932,0.8068,2516.0,2515.6,4.05466021]
[1729724947137,0.8068,2516.0,2515.7,1.01022741]
[1729724947649,4.78137,2516.0,2515.7,1.01022741]
[1729724948250,4.78137,2516.0,2515.7,1.25883225]
[1729724949145,4.78137,2516.0,2515.8,0.24860484]
[1729724950426,4.78137,2516.0,2515.7,1.01022741]
[1729724950618,4.78137,2516.0,2515.8,0.24860018]
[1729724950777,4.78137,2516.0,2515.7,1.01022741]
[1729724951301,0.8068,2516.0,2515.8,0.24859918]
[1729724951509,0.8068,2516.0,2515.9,0.24859918]
[1729724951708,0.8068,2516.0,2515.8,0.24859918]
[1729724952115,0.8068,2516.0,2515.9,0.24859918]
[1729724952423,4.78136,2516.0,2515.8,0.24859918]
[1729724952704,4.78136,2516.0,2515.9,0.24859918]
[1729724953013,4.78136,2516.0,2515.8,0.24860136]
[1729724953163,4.78136,2516.0,2515.9,0.24860136]
[1729724953375,4.78136,2516.0,2515.8,0.24860136]
[1729724953609,4.78136,2516.0,2515.9,0.24860136]
[1729724953812,4.78136,2516.0,2515.8,0.24860136]
[1729724953989,4.78136,2516.0,2515.9,0.24860136]
[1729724954170,4.78136,2516.0,2515.7,0.24860136]
[1729724954369,4.78136,2516.0,2515.8,0.24860136]
[1729724954604,4.78136,2516.0,2515.9,0.24860136]
[1729724954806,4.78136,2516.0,2515.6,0.06332182]
[1729724954807,4.78136,2516.0,2515.7,0.24860136]
[1729724954989,4.78136,2516.0,2515.8,0.24860136]
[1729724955292,4.78136,2516.0,2515.9,0.24860136]
[1729724955293,0.8068,2516.0,2515.9,0.24860136]
[1729724955493,0.8068,2516.0,2515.8,0.24860136]
[1729724955697,0.8068,2516.0,2515.9,0.24860136]
[1729724955890,0.8068,2516.0,2515.8,0.24860136]
[1729724956086,0.8068,2516.0,2515.9,0.24860136]
[1729724956396,0.1237163,2516.4,2515.9,4.22325136]
[1729724956397,0.7855,2516.3,2515.9,4.22325136]
[1729724956577,0.7855,2516.3,2516.0,1.33026127]
[1729724956754,0.7855,2516.3,2516.1,0.24860136]
[1729724957181,0.7855,2516.3,2516.2,0.24857351]
[1729724957385,3.97424,2516.2,2516.1,0.24857351]
[1729724957697,4.75965,2516.3,2516.0,0.24857351]
[1729724957859,4.75965,2516.3,2516.1,0.24857351]
[1729724958061,4.75965,2516.3,2515.9,0.24857351]
[1729724958279,4.75965,2516.3,2516.0,0.24857351]
[1729724958472,4.75965,2516.3,2516.1,0.24857351]
[1729724958674,8.73383,2516.3,2516.0,0.24857351]
[1729724958994,4.75965,2516.3,2516.1,0.24857351]
[1729724959178,4.75965,2516.3,2516.0,0.24857351]
[1729724959380,4.75965,2516.3,2516.1,0.24857351]
[1729724959559,4.75965,2516.3,2515.9,1.08412377]
[1729724959560,4.75965,2516.3,2516.0,0.24857351]
[1729724959759,4.75965,2516.3,2516.1,0.24857351]
[1729724959959,4.75965,2516.3,2515.9,1.08412377]
[1729724960159,4.75965,2516.3,2516.0,0.24858538]
[1729724960383,4.75965,2516.3,2516.1,0.24858538]
[1729724960592,4.75965,2516.3,2516.0,0.24858538]
[1729724960795,4.75965,2516.3,2516.1,0.24858538]
[1729724961865,0.7855,2516.3,2516.1,0.24858538]
[1729724963609,4.75959,2516.3,2516.0,0.79505322]
[1729724963780,4.75959,2516.3,2516.1,0.24858157]
[1729724963980,4.75959,2516.3,2516.1,0.24858316]
[1729724964188,4.75959,2516.3,2516.0,0.79505322]
[1729724964374,4.75959,2516.3,2516.1,0.24858316]
[1729724965205,4.75959,2516.3,2516.0,1.12311808]
[1729724965505,4.75959,2516.3,2516.0,1.04363638]
[1729724967267,4.75959,2516.3,2516.0,0.79505322]
[1729724967806,0.7855,2516.3,2516.0,1.04363413]
[1729724967974,0.7855,2516.3,2516.0,5.09766587]
[1729724968170,0.1237163,2516.4,2516.2,3.97417]
[1729724968390,0.1237163,2516.4,2516.3,1.90314399]
[1729724968709,0.1237163,2516.4,2516.3,0.24858091]
[1729724969267,0.1237163,2516.4,2516.3,6.04632333]
[1729724969665,0.1237163,2516.4,2516.3,4.22266091]
[1729724969868,0.1237163,2516.4,2516.3,5.36368843]
[1729724970282,0.1237163,2516.4,2516.3,7.18735085]
[1729724970493,0.1237163,2516.4,2516.3,5.36368843]
[1729724970696,0.1237163,2516.4,2516.3,7.18735085]
[1729724970895,0.1237163,2516.4,2516.3,6.93876994]
[1729724971096,0.1237163,2516.4,2516.3,7.18729506]
[1729724971405,0.1237163,2516.4,2516.3,7.2667606]
[1729724973712,0.1237163,2516.4,2516.3,7.18729506]
[1729724974783,0.1237163,2516.4,2516.3,7.01823497]
[1729724975315,0.1237163,2516.4,2516.3,10.8167581]
[1729724975611,0.1237163,2516.4,2516.3,11.55409307]
[1729724981082,0.7723,2517.1,2516.5,0.8168]
[1729724981320,0.7723,2517.4,2517.0,5.79663242]
[1729724981620,4.74465,2517.4,2516.9,7.94607]
[1729724981824,4.74465,2517.4,2516.9,9.76973242]
[1729724982026,4.74465,2517.4,2517.0,1.05865324]
[1729724982395,8.71711,2517.4,2517.0,1.05865324]
[1729724982588,4.74465,2517.4,2517.0,1.05865324]
[1729724983123,4.74465,2517.4,2517.1,0.07944769]
[1729724984121,0.7723,2517.4,2517.1,0.07944769]
[1729724984432,0.7723,2517.4,2517.1,4.74572218]
[1729724985118,0.7723,2517.4,2517.1,4.66627734]
[1729724985506,0.7723,2517.4,2517.1,0.69347734]
[1729724985920,4.74474,2517.4,2517.1,0.69347734]
[1729724986247,3.97261,2517.3,2516.8,4.79008]
[1729724986553,3.97261,2517.3,2516.8,8.7633]
[1729724986722,3.97262,2517.3,2516.8,3.97322]
[1729724987041,0.7723,2517.2,2516.8,3.97322]
[1729724987232,0.7723,2517.2,2516.9,0.397322]
[1729724988342,4.74505,2517.2,2516.9,0.397322]
[1729724989228,0.7723,2517.2,2516.9,4.370452]
[1729724989624,4.74497,2517.2,2516.9,0.397322]
[1729724990519,4.74497,2517.2,2516.8,1.82366242]
[1729724990733,4.74497,2517.2,2516.7,8.79700242]
[1729724991051,0.7723,2516.9,2516.6,0.24848217]
[1729724991351,0.7723,2516.9,2516.5,4.05320533]
[1729724991506,0.7723,2516.9,2516.6,4.95861777]
[1729724991707,0.7723,2517.1,2516.8,1.82366242]
[1729724991907,3.97245,2517.4,2517.0,1.82366242]
[1729724992241,0.7723,2517.5,2517.1,5.87584938]
[1729724992440,0.7723,2517.5,2517.2,1.82366242]
[1729724992646,0.7723,2517.5,2517.1,6.61320242]
[1729724992846,0.7723,2517.5,2517.2,1.05861724]
[1729724993236,3.97184,2517.8,2517.4,1.82366242]
[1729724993237,0.7628,2517.7,2517.4,1.82366242]
[1729724993413,0.7628,2517.7,2517.4,1.90309872]
[1729724993615,4.78827,2517.9,2517.4,1.82366242]
[1729724993811,4.78827,2517.9,2517.4,4.26057797]
[1729724994030,4.78827,2517.9,2517.4,2.11189039]
[1729724994351,3.97175,2517.8,2517.4,0.28822797]
[1729724995115,3.97175,2517.8,2517.4,4.26053797]
[1729724995415,4.78835,2517.9,2517.4,4.26053797]
[1729724995644,4.78835,2517.9,2517.5,0.8232958]
[1729724996128,8.76003,2517.9,2517.5,0.8232958]
[1729724996309,4.78835,2517.9,2517.5,0.8232958]
[1729724998352,3.97156,2517.9,2517.6,0.0794308]
[1729724998518,3.97396284,2518.0,2517.6,0.0794308]
[1729724998721,3.97396284,2518.0,2517.5,1.07171936]
[1729724998913,3.97396284,2518.0,2517.6,0.60986773]
[1729724999150,3.97162,2517.9,2517.6,0.60986773]
[1729724999353,3.97396284,2518.0,2517.6,0.68929776]
[1729724999726,7.94547284,2518.0,2517.6,0.85829129]
[1729724999932,7.94547284,2518.0,2517.6,0.60986773]
[1729725000131,3.97396284,2518.0,2517.6,0.85829129]
[1729725000337,7.94547284,2518.0,2517.6,0.85829129]
[1729725000557,3.97396284,2518.0,2517.6,0.85829129]
[1729725000866,3.97218,2517.6,2517.3,0.24842087]
[1729725001022,3.97218,2517.6,2517.2,0.24842087]
[1729725001225,3.97218,2517.6,2517.2,1.01492087]
[1729725001417,3.97218,2517.6,2517.3,0.24842087]
[1729725003326,4.78868,2517.7,2517.4,0.24842087]
[1729725003653,4.78868,2517.7,2517.3,0.24842087]
[1729725003871,4.78868,2517.7,2517.4,0.24842087]
[1729725004156,4.78868,2517.7,2517.3,0.24842087]
[1729725004360,0.8167,2517.7,2517.4,0.24842087]
[1729725004720,4.78864,2517.7,2517.4,0.24842087]
[1729725007755,3.97205,2517.6,2517.3,0.82566408]
[1729725008063,3.97205,2517.6,2517.4,0.24845121]
[1729725008261,4.78858,2517.7,2517.2,4.22110121]
[1729725008471,4.78858,2517.7,2517.3,0.24845121]
[1729725008768,0.00248284,2518.0,2517.5,0.55]
[1729725008955,0.00248284,2518.0,2517.6,4.22046121]
[1729725009258,3.97390284,2518.0,2517.7,0.24845121]
[1729725009628,3.97390284,2518.0,2517.8,0.24845121]
[1729725009933,0.00248284,2518.0,2517.7,0.24845121]
[1729725010777,3.97389284,2518.0,2517.7,0.24845121]
[1729725011059,3.97389284,2518.0,2517.6,0.55869322]
[1729725011266,3.97389284,2518.0,2517.7,0.80808632]
[1729725011775,0.00248284,2518.0,2517.8,4.72515]
[1729725011930,0.00248284,2518.0,2517.8,0.7535]
[1729725012560,0.00248284,2518.0,2517.7,0.80808632]
[1729725012765,3.97400284,2518.0,2517.7,0.80808632]
[1729725012934,3.97400284,2518.0,2517.6,1.37513148]
[1729725013566,0.00248284,2518.0,2517.8,0.24839326]
[1729725015161,0.00248284,2518.0,2517.7,3.97179]
[1729725015868,0.00248284,2518.0,2517.6,5.28408322]
[1729725016078,0.00248284,2518.0,2517.7,3.97187]
[1729725016372,0.00248284,2518.0,2517.8,0.52840632]
[1729725016994,0.00248284,2518.0,2517.6,1.31219322]
[1729725016995,3.97399284,2518.0,2517.6,1.31219322]
[1729725017365,0.00248284,2518.0,2517.6,1.31219322]
[1729725017665,0.00248284,2518.0,2517.6,5.28421322]
[1729725018250,3.97207,2517.6,2517.1,4.72631]
[1729725018450,7.9442,2517.6,2517.1,4.72631]
[1729725018680,0.00248284,2518.0,2517.7,3.9718]
[1729725018973,3.97396284,2518.0,2517.5,4.72566]
[1729725019177,3.97397284,2518.0,2517.5,5.198226]
[1729725019512,4.75797284,2518.0,2517.5,5.198186]
[1729725020575,3.97164,2517.9,2517.5,1.226066]
[1729725020967,3.97178,2517.8,2517.5,0.472566]
[1729725021282,3.97178,2517.8,2517.4,3.0]
[1729725021838,3.97178,2517.8,2517.3,4.72587]
[1729725021839,3.97178,2517.8,2517.3,3.97237]
[1729725022047,0.00248284,2518.0,2517.7,0.7535]
[1729725022342,0.00248284,2518.0,2517.8,0.07942305]
[1729725022546,0.00248284,2518.0,2517.8,4.87983305]
[1729725022863,0.00248284,2518.0,2517.8,5.76500436]
[1729725023065,0.00248284,2518.0,2517.8,1.79329436]
[1729725023306,0.00248284,2518.0,2517.9,0.24839322]
[1729725024572,0.00248284,2518.0,2517.9,4.21995322]
[1729725024770,0.00248284,2518.0,2517.9,4.76995322]
[1729725024997,0.00248284,2518.0,2517.9,6.54122753]
[1729725025412,0.00248284,2518.0,2517.9,2.01964564]
[1729725025587,0.00248284,2518.0,2517.9,0.31120512]
[1729725025918,0.00248284,2518.0,2517.9,0.31121181]
[1729725026209,0.00248284,2518.0,2517.9,4.83277181]
[1729725026814,0.00248284,2518.0,2517.9,4.91218595]
[1729725027111,0.00248284,2518.0,2517.9,4.76993133]
[1729725027407,0.00248284,2518.0,2517.9,6.08976204]
[1729725028618,0.00248284,2518.0,2517.9,5.77858113]
[1729725028911,0.00248284,2518.0,2517.9,6.08970972]
[1729725029272,0.00248284,2518.0,2517.9,6.16912391]
[1729725029477,0.00248284,2518.0,2517.9,6.16909702]
[1729725030113,0.00248284,2518.0,2517.9,6.08968283]
[1729725031381,0.00248284,2518.0,2517.9,6.0896759]
[1729725031578,0.00248284,2518.0,2517.9,5.5396759]
[1729725031789,0.00248284,2518.0,2517.9,1.50538441]
[1729725032190,0.00248284,2518.0,2517.9,5.47694441]
[1729725032714,0.00248284,2518.0,2517.9,1.50538441]
[1729725033081,0.00248284,2518.0,2517.8,0.24836328]
[1729725033508,0.00248284,2518.0,2517.7,3.06273149]
[1729725033509,0.00248284,2518.0,2517.9,0.24836328]
[1729725033712,0.00248284,2518.0,2517.8,0.24836328]
[1729725034543,3.97156,2517.9,2517.7,0.24836328]
[1729725035016,0.7828,2517.8,2517.7,0.24836328]
[1729725035676,4.75452,2517.8,2517.6,0.24836328]
[1729725035879,0.7828,2517.8,2517.5,0.24836328]
[1729725036188,0.00248284,2518.0,2517.5,7.94422]
[1729725036189,4.75675284,2518.0,2517.5,7.94422]
[1729725036397,3.97157,2517.9,2517.6,1.04284108]
[1729725036710,4.75669284,2518.0,2517.6,5.01484108]
[1729725036913,4.75669284,2518.0,2517.7,0.24841908]